bitfinex/quotes_SOLUSD_20250317
["timestamp","ask_amount","ask_price","bid_price","bid_amount"]
[1742240085050,0.03,130.81,130.8,163.48673737]
[1742240085537,0.03,130.81,130.8,171.13193737]
[1742240087439,0.03,130.81,130.8,33.09484886]
[1742240088739,0.03,130.81,130.8,25.44964886]
[1742240089038,0.03,130.81,130.8,6.8]
[1742240089452,0.03,130.81,130.79,18.64964886]
[1742240090552,0.03,130.81,130.79,26.29524886]
[1742240094632,0.03,130.81,130.79,18.64964886]
[1742240094832,0.03,130.81,130.78,14.5091]
[1742240095563,0.03,130.81,130.78,6.863]
[1742240095843,0.03,130.81,130.78,0.063]
[1742240095844,19.40682359,130.81,130.78,0.063]
[1742240096220,19.37682359,130.8,130.78,0.063]
[1742240096440,0.03,130.81,130.78,0.063]
[1742240099042,27.05152359,130.81,130.78,0.063]
[1742240099946,7.6747,130.81,130.78,0.063]
[1742240100150,7.6746,130.81,130.78,0.063]
[1742240100350,27.05142359,130.81,130.78,0.063]
[1742240100647,19.37682359,130.79,130.78,0.063]
[1742240100824,19.66114673,130.79,130.78,0.063]
[1742240101029,27.30694673,130.79,130.78,0.063]
[1742240102725,20.0,130.76,130.75,0.063]
[1742240102928,39.37682359,130.76,130.75,0.063]
[1742240103134,47.02432359,130.76,130.75,0.063]
[1742240104046,47.30864673,130.76,130.75,0.063]
[1742240108026,27.93182314,130.76,130.75,0.063]
[1742240108233,39.37682359,130.76,130.75,0.063]
[1742240108543,19.37682359,130.78,130.75,0.063]
[1742240108742,19.37682359,130.8,130.75,19.43982359]
[1742240108951,27.05162359,130.81,130.77,18.64964886]
[1742240109165,19.40682359,130.81,130.77,18.64964886]
[1742240109547,27.05162359,130.81,130.77,18.64964886]
[1742240109747,19.37682359,130.8,130.77,18.64964886]
[1742240110055,19.37682359,130.79,130.75,159.0752121]
[1742240110263,19.37682359,130.78,130.75,1.6613]
[1742240110566,19.37682359,130.78,130.75,18.71264886]
[1742240110929,19.37682359,130.76,130.75,0.063]
[1742240112148,27.02432359,130.76,130.75,0.063]
[1742240114241,27.30864673,130.76,130.75,0.063]
[1742240116057,7.6472,130.77,130.75,0.063]
[1742240116261,27.02402359,130.77,130.75,0.063]
[1742240117338,19.37682359,130.76,130.75,0.063]
[1742240118152,19.37682359,130.77,130.75,0.063]
[1742240118665,8.74222314,130.79,130.75,18.71264886]
[1742240118666,27.02292359,130.79,130.75,18.71264886]
[1742240119160,27.05292359,130.79,130.75,18.71264886]
[1742240119358,0.03,130.79,130.77,18.64964886]
[1742240119563,0.03,130.79,130.77,38.02647245]
[1742240120067,0.03,130.79,130.76,19.37682359]
[1742240120564,0.03,130.79,130.77,26.29624886]
[1742240120767,0.03,130.79,130.77,45.67307245]
[1742240122270,0.03,130.79,130.77,26.29624886]
[1742240123252,0.03,130.79,130.78,38.02647245]
[1742240124869,0.03,130.79,130.78,45.67287245]
[1742240125255,39.40682359,130.79,130.75,0.063]
[1742240125456,19.37682359,130.77,130.75,0.063]
[1742240126256,19.37682359,130.76,130.75,0.063]
[1742240127263,27.02432359,130.76,130.75,0.063]
[1742240127568,19.37682359,130.76,130.75,0.063]
[1742240127761,19.37682359,130.78,130.75,0.063]
[1742240127949,39.40682359,130.79,130.75,18.71264886]
[1742240129277,47.05272359,130.79,130.75,18.71264886]
[1742240129776,39.40682359,130.79,130.75,26.36074886]
[1742240130672,20.03,130.79,130.75,45.73757245]
[1742240130870,47.05262359,130.79,130.75,18.71264886]
[1742240131070,19.37682359,130.78,130.75,18.71264886]
[1742240131456,27.02332359,130.78,130.75,18.71264886]
[1742240132379,27.02332359,130.78,130.75,0.063]
[1742240132559,19.37682359,130.76,130.75,0.063]
[1742240133674,27.02432359,130.76,130.75,0.063]
[1742240133978,27.02402359,130.77,130.75,0.063]
[1742240134176,26.83,130.79,130.75,0.063]
[1742240134177,19.37682359,130.78,130.75,0.063]
[1742240134482,26.83,130.79,130.75,18.71264886]
[1742240134483,46.20682359,130.79,130.75,18.71264886]
[1742240134682,39.40682359,130.79,130.75,18.71264886]
[1742240134879,47.05272359,130.79,130.75,18.71264886]
[1742240135181,19.37682359,130.78,130.75,18.71264886]
[1742240137478,19.40682359,130.79,130.75,26.36074886]
[1742240138490,0.03,130.79,130.75,26.36074886]
[1742240138679,19.40682359,130.79,130.75,26.36074886]
[1742240139201,27.05262359,130.79,130.75,26.36074886]
[1742240139361,19.37682359,130.78,130.75,18.71264886]
[1742240139865,27.02322359,130.78,130.75,18.71264886]
[1742240140266,19.37682359,130.78,130.75,18.71264886]
[1742240140467,19.37682359,130.77,130.75,0.063]
[1742240143083,7.6761,130.79,130.75,0.063]
[1742240143084,0.31432314,130.79,130.75,0.063]
[1742240143269,19.54898516,130.79,130.75,0.063]
[1742240143468,19.37682359,130.78,130.75,0.063]
[1742240144770,0.03,130.79,130.75,0.063]
[1742240144976,19.37682359,130.76,130.75,0.063]
[1742240146893,27.02432359,130.76,130.75,0.063]
[1742240149307,27.30864673,130.76,130.75,0.063]
[1742240152175,27.59296987,130.76,130.75,0.063]
[1742240160000,27.30864673,130.76,130.75,0.063]
[1742240160204,19.94546987,130.76,130.75,0.063]
[1742240160789,19.37682359,130.77,130.75,0.063]
[1742240161599,7.6761,130.79,130.75,0.063]
[1742240161991,0.03,130.79,130.75,0.063]
[1742240162194,19.40682359,130.79,130.75,0.063]
[1742240162389,19.37682359,130.78,130.75,0.063]
[1742240162602,19.37682359,130.77,130.75,0.063]
[1742240163887,19.37682359,130.76,130.75,0.063]
[1742240164088,27.59296987,130.76,130.75,0.063]
[1742240166211,0.56864628,130.76,130.75,0.063]
[1742240166407,20.0,130.76,130.75,0.063]
[1742240169112,19.40682359,130.79,130.75,0.063]
[1742240169409,0.03,130.79,130.75,0.063]
[1742240169814,0.03,130.79,130.75,19.43982359]
[1742240169990,0.03,130.79,130.75,27.08782359]
[1742240170187,0.03,130.79,130.75,0.063]
[1742240170496,19.40682359,130.79,130.75,0.063]
[1742240171613,0.03,130.79,130.76,38.02647245]
[1742240171804,0.03,130.79,130.77,19.37682359]
[1742240172111,0.03,130.79,130.77,27.02332359]
[1742240172416,0.03,130.79,130.76,45.67387245]
[1742240173594,0.03,130.79,130.75,1.7204]
[1742240173803,19.40682359,130.79,130.75,1.7204]
[1742240174015,19.37682359,130.78,130.75,0.063]
[1742240174196,19.37682359,130.77,130.75,0.063]
[1742240174402,19.37682359,130.76,130.75,0.063]
[1742240174811,39.37682359,130.77,130.75,0.063]
[1742240175211,19.40682359,130.79,130.75,0.063]
[1742240176410,19.37682359,130.78,130.75,0.063]
[1742240177426,27.05272359,130.79,130.75,0.063]
[1742240177727,19.40682359,130.79,130.75,0.063]
[1742240178319,0.03,130.79,130.75,38.08947245]
[1742240178719,0.03,130.79,130.76,26.17682359]
[1742240179332,0.03,130.79,130.77,19.37682359]
[1742240179510,0.03,130.79,130.77,7.647]
[1742240182017,0.03,130.79,130.76,345.82412359]
[1742240182339,0.03,130.79,130.76,6.8]
[1742240183313,20.08589798,130.79,130.76,6.8]
[1742240183508,12.41009798,130.78,130.75,25.51264886]
[1742240184116,20.08589798,130.79,130.75,25.51264886]
[1742240185320,12.41009798,130.78,130.75,0.063]
[1742240185503,20.08589798,130.79,130.75,0.063]
[1742240185941,12.44009798,130.79,130.75,0.063]
[1742240186234,0.03,130.79,130.75,12.47309798]
[1742240186419,20.08599798,130.79,130.75,0.063]
[1742240189129,0.03,130.79,130.75,0.063]
[1742240189429,12.44009798,130.79,130.75,0.063]
[1742240190229,0.03,130.79,130.75,0.063]
[1742240190607,0.03,130.79,130.76,38.70724684]
[1742240192110,0.03,130.79,130.76,338.29714886]
[1742240192722,0.03,130.79,130.76,26.29714886]
[1742240192922,0.03,130.79,130.76,38.70724684]
[1742240193814,0.03,130.79,130.77,12.41009798]
[1742240194220,0.03,130.79,130.76,38.70724684]
[1742240196838,0.03,130.81,130.8,20.05529798]
[1742240197338,0.03,130.81,130.8,12.41009798]
[1742240198624,0.03,130.81,130.8,18.64964886]
[1742240200742,0.03,130.81,130.8,31.05974684]
[1742240202135,0.03,130.81,130.8,169.09683535]
[1742240203639,0.03,130.81,130.8,176.74203535]
[1742240205262,0.03,130.81,130.8,488.74203535]
[1742240205952,0.03,130.81,130.8,481.09683535]
[1742240206248,0.03,130.81,130.8,488.74203535]
[1742240207953,0.03,130.81,130.8,481.09683535]
[1742240209623,0.03,130.81,130.8,488.74203535]
[1742240211751,0.03,130.81,130.8,176.74203535]
[1742240214635,0.03,130.81,130.8,488.74203535]
[1742240215063,0.03,130.81,130.8,176.74203535]
[1742240215264,0.03,130.81,130.8,26.29484886]
[1742240215566,0.03,130.81,130.8,38.70494684]
[1742240217967,0.03,130.81,130.8,350.70494684]
[1742240218554,0.03,130.81,130.8,38.70494684]
[1742240219477,0.03,130.81,130.8,169.09683535]
[1742240219845,0.03,130.81,130.8,176.74203535]
[1742240220539,0.03,130.81,130.8,169.09683535]
[1742240221273,0.03,130.81,130.8,176.74203535]
[1742240221444,0.03,130.81,130.8,488.74203535]
[1742240222463,0.03,130.81,130.8,176.74203535]
[1742240225675,0.03,130.81,130.8,488.74203535]
[1742240227147,0.03,130.81,130.8,468.68673737]
[1742240227374,0.03,130.81,130.8,156.68673737]
[1742240227947,0.03,130.81,130.8,164.33193737]
[1742240228178,0.03,130.81,130.8,176.74203535]
[1742240230277,0.03,130.81,130.8,488.74203535]
[1742240230654,0.03,130.81,130.8,495.52203535]
[1742240231078,0.03,130.81,130.8,357.48494684]
[1742240235771,15.32527507,130.86,130.8,357.48494684]
[1742240235974,15.32527507,130.86,130.82,12.41009798]
[1742240236271,7.68347507,130.86,130.82,12.41009798]
[1742240237086,7.68347507,130.86,130.82,20.05389798]
[1742240237795,22.21654628,130.89,130.84,12.41009798]
[1742240237962,34.62664426,130.89,130.84,19.19009798]
[1742240238571,42.26684426,130.89,130.84,19.19009798]
[1742240238892,0.03,130.87,130.84,26.83279798]
[1742240239867,0.03,130.87,130.84,14.4227]
[1742240241988,0.03,130.87,130.84,6.78]
[1742240242163,0.03,130.87,130.84,26.83289798]
[1742240243163,0.03,130.87,130.84,6.78]
[1742240243676,12.41009798,130.86,130.84,6.78]
[1742240244076,12.44009798,130.87,130.84,6.78]
[1742240245270,12.41009798,130.86,130.82,12.41009798]
[1742240245470,12.41009798,130.86,130.82,19.19009798]
[1742240245775,12.41009798,130.83,130.79,25.42964886]
[1742240245971,12.41009798,130.84,130.79,37.83974684]
[1742240246165,12.41009798,130.82,130.78,340.28008851]
[1742240246476,12.41009798,130.82,130.78,144.88008851]
[1742240247959,18.90785955,130.85,130.8,12.41009798]
[1742240248180,18.90785955,130.85,130.79,18.64964886]
[1742240248181,18.90785955,130.85,130.81,12.41009798]
[1742240248808,26.55025955,130.85,130.8,12.41009798]
[1742240249314,12.41009798,130.84,130.79,31.05974684]
[1742240250310,20.05309798,130.84,130.79,38.70544684]
[1742240250478,12.41009798,130.83,130.78,14.4892]
[1742240250809,12.41009798,130.82,130.78,6.843]
[1742240251217,12.41009798,130.82,130.81,0.063]
[1742240251918,12.97874426,130.83,130.81,0.063]
[1742240252483,20.62244426,130.83,130.81,0.063]
[1742240253988,12.97874426,130.83,130.81,0.063]
[1742240254508,20.62224426,130.83,130.81,0.063]
[1742240258624,12.97874426,130.82,130.81,0.063]
[1742240260702,20.62274426,130.82,130.81,0.063]
[1742240264630,0.28432314,130.77,130.75,0.063]
[1742240264929,12.97874426,130.76,130.75,0.063]
[1742240266632,20.62624426,130.76,130.75,0.063]
[1742240275417,70.26663618,130.76,130.75,0.063]
[1742240275606,0.56864628,130.75,130.68,138.03708851]
[1742240275806,12.41009798,130.71,130.67,18.71267286]
[1742240276512,12.41009798,130.71,130.67,7.715724]
[1742240277043,12.41009798,130.68,130.67,0.063024]
[1742240280122,20.06229798,130.68,130.67,0.063024]
[1742240280368,12.41009798,130.68,130.67,0.063024]
[1742240280523,12.97874426,130.68,130.67,0.063024]
[1742240281243,20.63094426,130.68,130.67,0.063024]
[1742240285754,12.41009798,130.68,130.67,0.063024]
[1742240288439,20.63094426,130.68,130.67,0.063024]
[1742240289533,12.69442112,130.68,130.67,0.063024]
[1742240289737,12.41009798,130.68,130.67,0.063024]
[1742240291438,0.28432314,130.69,130.67,0.063024]
[1742240291640,12.41009798,130.68,130.67,0.063024]
[1742240291866,20.63094426,130.68,130.67,0.063024]
[1742240296763,12.41009798,130.68,130.67,0.063024]
[1742240297066,0.28432314,130.69,130.67,0.063024]
[1742240297268,12.41009798,130.68,130.67,0.063024]
[1742240297743,7.08432314,130.73,130.67,0.063024]
[1742240297942,12.41009798,130.7,130.67,0.063024]
[1742240298662,12.41009798,130.69,130.67,0.063024]
[1742240299036,12.41009798,130.68,130.67,0.063024]
[1742240300037,20.06229798,130.68,130.67,0.063024]
[1742240300238,20.63094426,130.68,130.67,0.063024]
[1742240301869,20.63094426,130.68,130.66,0.063]
[1742240302048,12.97874426,130.67,130.66,0.063]
[1742240302243,12.97874426,130.67,130.65,0.063]
[1742240302446,32.41009798,130.66,130.65,0.063]
[1742240302868,32.97874426,130.66,130.65,0.0001]
[1742240303049,0.56864628,130.65,130.64,0.063]
[1742240305562,47.1195665,130.63,130.62,0.063]
[1742240306264,0.56864628,130.62,130.61,0.063]
[1742240306454,0.56864628,130.62,130.59,0.063]
[1742240306455,20.56864628,130.6,130.59,0.063]
[1742240306660,0.56864628,130.59,130.53,1.5996]
[1742240306869,19.44786011,130.54,130.53,1.5996]
[1742240307957,19.44786011,130.57,130.53,1.5996]
[1742240308171,26.8,130.6,130.53,35.50836011]
[1742240308353,19.44786011,130.58,130.53,173.54544862]
[1742240308553,19.44786011,130.57,130.53,146.43668851]
[1742240308772,19.44786011,130.56,130.53,8.3996]
[1742240308982,19.44786011,130.56,130.53,16.0605]
[1742240309182,19.44786011,130.57,130.53,16.0605]
[1742240309347,19.44786011,130.58,130.53,35.50836011]
[1742240310150,0.28432314,130.64,130.57,19.44786011]
[1742240310472,19.44786011,130.63,130.59,21.07536011]
[1742240310657,19.44786011,130.63,130.59,1.6275]
[1742240310854,19.44786011,130.62,130.59,1.6275]
[1742240311579,19.44786011,130.6,130.59,1.6275]
[1742240312449,19.44786011,130.61,130.59,1.6275]
[1742240313062,19.44786011,130.6,130.56,1.6165]
[1742240313268,19.44786011,130.58,130.56,1.6165]
[1742240313849,19.44786011,130.6,130.56,9.2757]
[1742240314056,19.44786011,130.61,130.56,28.72356011]
[1742240315885,19.44786011,130.67,130.62,21.00666011]
[1742240316578,19.44786011,130.67,130.63,7.6552]
[1742240316964,19.44786011,130.66,130.62,9.2143]
[1742240317878,19.44786011,130.67,130.62,28.66216011]
[1742240318278,19.44786011,130.63,130.62,1.5588]
[1742240318456,19.44786011,130.63,130.58,27.10586011]
[1742240318457,19.44786011,130.63,130.58,173.35174862]
[1742240318655,19.44786011,130.63,130.58,160.70388851]
[1742240319075,19.44786011,130.61,130.58,153.04588851]
[1742240319274,19.44786011,130.62,130.58,153.04588851]
[1742240320377,19.44786011,130.6,130.55,21.04806011]
[1742240320680,19.44786011,130.6,130.55,173.54494862]
[1742240321178,31.12014785,130.6,130.55,185.21723636]
[1742240321364,31.12014785,130.59,130.55,146.43728851]
[1742240321553,31.12014785,130.59,130.55,139.63728851]
[1742240322275,31.12014785,130.58,130.55,1.6002]
[1742240322581,31.12014785,130.6,130.55,40.37994785]
[1742240322966,31.12014785,130.6,130.55,47.17994785]
[1742240323978,7.6566,130.61,130.55,8.4002]
[1742240323979,31.12014785,130.59,130.55,8.4002]
[1742240324172,31.12014785,130.61,130.55,47.18014785]
[1742240324577,31.12014785,130.6,130.55,47.18014785]
[1742240325071,31.12014785,130.6,130.55,185.21723636]
[1742240325275,31.12014785,130.61,130.56,31.12014785]
[1742240325482,0.063,130.6,130.56,31.12014785]
[1742240325872,31.18314785,130.6,130.55,185.24723636]
[1742240327881,31.12014785,130.59,130.55,154.12708851]
[1742240328079,31.18314785,130.6,130.55,185.24723636]
[1742240328379,31.18314785,130.6,130.55,204.39693636]
[1742240328781,0.063,130.6,130.56,49.76979671]
[1742240328981,0.063,130.6,130.57,31.12014785]
[1742240329288,0.063,130.6,130.56,49.76979671]
[1742240329785,0.063,130.6,130.58,31.12014785]
[1742240329965,0.063,130.6,130.59,56.56979671]
[1742240330890,0.063,130.6,130.59,64.22729671]
[1742240331070,0.063,130.6,130.59,14.4575]
[1742240333897,0.063,130.6,130.59,45.57764785]
[1742240334489,0.063,130.6,130.59,64.22729671]
[1742240335103,0.0001,130.6,130.59,205.83303998]
[1742240335276,31.12014785,130.68,130.63,20.0]
[1742240335462,31.12014785,130.68,130.63,51.12014785]
[1742240336081,31.12014785,130.69,130.64,31.12014785]
[1742240336281,31.12014785,130.7,130.65,31.12014785]
[1742240336571,31.12014785,130.69,130.64,169.15723636]
[1742240337998,31.12014785,130.69,130.65,7.654]
[1742240338602,0.28432314,130.72,130.65,9.2653]
[1742240338779,31.12014785,130.73,130.68,31.12014785]
[1742240338976,31.12014785,130.73,130.68,37.92014785]
[1742240339295,31.12014785,130.7,130.68,6.8]
[1742240340179,31.12014785,130.71,130.68,6.8]
[1742240340492,31.12014785,130.72,130.68,14.4522]
[1742240340884,31.12014785,130.72,130.68,6.8]
[1742240341192,31.12014785,130.72,130.68,14.4522]
[1742240341399,31.12014785,130.73,130.68,45.57234785]
[1742240341605,0.063,130.74,130.71,31.12014785]
[1742240341986,0.063,130.74,130.7,49.76979671]
[1742240342303,0.063,130.74,130.71,38.77064785]
[1742240342605,0.063,130.74,130.72,39.46264785]
[1742240343199,0.063,130.74,130.72,27.74096237]
[1742240344207,0.063,130.74,130.73,7.6493]
[1742240345205,0.063,130.74,130.73,183.73449974]
[1742240345875,0.063,130.74,130.73,184.16098445]
[1742240345876,0.0001,130.74,130.73,184.16098445]
[1742240346073,0.03,130.75,130.74,19.07613357]
[1742240346273,0.03,130.75,130.74,185.68922542]
[1742240346503,0.03,130.78,130.77,59.63381123]
[1742240346812,0.03,130.78,130.77,204.45089974]
[1742240347375,0.03,130.84,130.77,204.45089974]
[1742240347678,0.03,130.84,130.8,19.39846237]
[1742240347878,0.03,130.84,130.81,6.78]
[1742240348198,0.03,130.84,130.83,19.39846237]
[1742240348388,0.03,130.84,130.83,177.70309974]
[1742240350500,0.03,130.84,130.83,158.30463737]
[1742240350680,0.03,130.84,130.83,6.78]
[1742240351596,0.03,130.84,130.83,56.42772625]
[1742240351985,0.03,130.84,130.83,203.63633543]
[1742240352179,0.03,130.84,130.83,202.10831476]
[1742240356104,0.03,130.84,130.83,204.06349947]
[1742240356480,0.03,130.87,130.86,20.0]
[1742240356680,0.03,130.87,130.86,189.21254981]
[1742240356875,0.03,130.87,130.86,187.68481476]
[1742240357405,0.03,130.87,130.86,156.68673737]
[1742240357704,0.03,130.87,130.85,138.03708851]
[1742240358899,0.03,130.87,130.84,138.03708851]
[1742240359089,31.02807739,130.87,130.83,209.02]
[1742240359410,0.03,130.87,130.84,49.64772625]
[1742240359611,0.03,130.87,130.85,30.99807739]
[1742240360389,0.03,130.87,130.84,156.68673737]
[1742240360610,0.03,130.87,130.84,187.68481476]
[1742240360830,0.03,130.87,130.85,30.99807739]
[1742240361126,0.03,130.87,130.84,187.74781476]
[1742240361335,0.03,130.87,130.84,138.10008851]
[1742240361624,31.02807739,130.87,130.84,0.063]
[1742240361929,30.99807739,130.86,130.84,0.063]
[1742240362599,0.03,130.87,130.84,31.06107739]
[1742240363017,0.03,130.87,130.85,30.99807739]
[1742240363318,0.03,130.87,130.86,37.77807739]
[1742240363510,0.03,130.87,130.86,183.4568659]
[1742240363907,0.03,130.87,130.86,144.81708851]
[1742240364110,0.03,130.87,130.86,152.45878851]
[1742240364440,0.03,130.87,130.86,144.81708851]
[1742240366216,0.03,130.87,130.86,6.78]
[1742240366810,0.03,130.87,130.85,138.03708851]
[1742240367131,30.99807739,130.86,130.84,0.063]
[1742240367418,30.99807739,130.85,130.84,0.063]
[1742240367625,30.99807739,130.86,130.84,0.063]
[1742240367829,30.99807739,130.85,130.84,0.063]
[1742240368034,31.28240053,130.85,130.84,0.063]
[1742240368205,31.56672367,130.85,130.84,0.063]
[1742240368614,81.21444992,130.85,130.84,0.0001]
[1742240368926,88.85674992,130.85,130.84,0.0001]
[1742240369125,57.85867253,130.85,130.84,0.0001]
[1742240369725,88.85674992,130.85,130.84,0.0001]
[1742240370232,7.6419,130.86,130.8,6.78]
[1742240370420,30.99807739,130.85,130.81,6.78]
[1742240370621,30.99807739,130.86,130.81,37.77807739]
[1742240370825,30.99807739,130.85,130.81,6.78]
[1742240371835,30.99807739,130.85,130.84,0.063]
[1742240372329,30.99807739,130.86,130.84,0.063]
[1742240372530,31.02807739,130.87,130.84,0.063]
[1742240372728,30.99807739,130.86,130.84,0.063]
[1742240373115,30.99807739,130.85,130.84,0.063]
[1742240374126,30.99807739,130.86,130.84,0.063]
[1742240375624,30.99807739,130.85,130.84,0.063]
[1742240376021,31.56672367,130.85,130.84,0.063]
[1742240377645,39.20902367,130.85,130.84,0.063]
[1742240378326,57.85867253,130.85,130.84,0.063]
[1742240379630,95.41244992,130.85,130.84,0.063]
[1742240379851,19.21829514,130.84,130.77,138.03708851]
[1742240380029,30.99807739,130.8,130.76,14.4273]
[1742240380731,30.99807739,130.79,130.75,14.4279]
[1742240381624,30.99807739,130.78,130.75,6.78]
[1742240381825,30.99807739,130.79,130.75,14.428]
[1742240382129,30.99807739,130.79,130.75,7.648]
[1742240382332,30.99807739,130.79,130.74,32.59497739]
[1742240382333,30.99807739,130.78,130.74,16.0254]
[1742240383323,30.99807739,130.79,130.74,47.02347739]
[1742240383743,7.645,130.81,130.75,30.99807739]
[1742240383744,30.99807739,130.8,130.75,30.99807739]
[1742240384041,30.99807739,130.79,130.74,66.14537739]
[1742240384429,30.99807739,130.79,130.74,16.0254]
[1742240384747,30.99807739,130.78,130.74,16.0254]
[1742240386221,38.64477739,130.78,130.74,6.78]
[1742240386544,30.99807739,130.76,130.72,7.6495]
[1742240387050,30.99807739,130.75,130.71,147.20178851]
[1742240387232,30.99807739,130.74,130.71,9.1647]
[1742240387554,19.40695902,130.72,130.7,0.063]
[1742240387756,19.40695902,130.71,130.7,0.063]
[1742240388948,19.9756053,130.71,130.7,0.063]
[1742240389156,38.42964725,130.71,130.7,0.063]
[1742240389854,46.08014725,130.71,130.7,0.063]
[1742240390642,38.42964725,130.71,130.7,0.063]
[1742240391743,37.86100097,130.71,130.7,0.063]
[1742240393657,46.08014725,130.71,130.7,0.063]
[1742240394356,45.79582411,130.71,130.7,0.063]
[1742240394546,46.08014725,130.71,130.7,0.063]
[1742240395749,38.42964725,130.71,130.7,0.063]
[1742240396355,46.08014725,130.71,130.7,0.063]
[1742240397056,7.34864628,130.71,130.7,0.063]
[1742240397233,38.42964725,130.71,130.7,0.063]
[1742240397428,46.08014725,130.71,130.7,0.063]
[1742240397628,38.42964725,130.71,130.7,0.063]
[1742240399048,31.64964725,130.71,130.7,0.063]
[1742240399236,39.30014725,130.71,130.7,0.063]
[1742240401248,36.53940725,130.71,130.7,0.063]
[1742240401837,28.88890725,130.71,130.7,0.063]
[1742240402062,0.14216157,130.73,130.7,0.063]
[1742240402235,31.08100097,130.72,130.7,0.063]
[1742240402443,31.08100097,130.71,130.7,0.063]
[1742240404139,38.73150097,130.71,130.7,0.063]
[1742240404963,39.30014725,130.71,130.7,0.063]
[1742240407768,31.08100097,130.71,130.7,0.063]
[1742240409942,31.11100097,130.73,130.7,0.063]
[1742240411973,31.08100097,130.72,130.7,0.063]
[1742240413367,19.41466462,130.72,130.7,0.063]
[1742240413569,0.03,130.73,130.7,0.063]
[1742240413776,19.41466462,130.72,130.7,0.063]
[1742240415374,27.06456462,130.72,130.7,0.063]
[1742240415559,19.41466462,130.72,130.7,0.063]
[1742240416271,0.03,130.73,130.7,0.063]
[1742240416677,0.03,130.73,130.72,20.0]
[1742240416850,0.03,130.73,130.72,157.45175313]
[1742240417952,0.03,130.73,130.72,165.10165313]
[1742240418256,19.41466462,130.8,130.73,18.64964886]
[1742240418458,19.41466462,130.8,130.75,19.41466462]
[1742240419049,27.05986462,130.8,130.75,19.41466462]
[1742240419248,31.02596853,130.79,130.75,312.0]
[1742240419472,31.02596853,130.77,130.73,138.03708851]
[1742240419674,31.02596853,130.77,130.72,191.25195704]
[1742240419862,31.02596853,130.78,130.73,31.02596853]
[1742240420051,31.02596853,130.78,130.74,7.6487]
[1742240420253,31.02596853,130.78,130.73,38.67496853]
[1742240421376,31.02596853,130.79,130.74,31.02596853]
[1742240421577,31.02596853,130.8,130.75,31.02596853]
[1742240422163,31.02596853,130.79,130.75,7.6479]
[1742240422469,31.02596853,130.78,130.74,7.6484]
[1742240422676,31.02596853,130.77,130.73,145.68618851]
[1742240422876,31.02596853,130.77,130.73,7.6491]
[1742240423075,31.02596853,130.78,130.73,38.67506853]
[1742240423580,31.02596853,130.79,130.74,31.02596853]
[1742240424491,7.6454,130.8,130.75,7.6481]
[1742240424492,31.02596853,130.8,130.75,7.6481]
[1742240424972,31.02596853,130.81,130.76,37.80596853]
[1742240425359,31.02596853,130.8,130.76,6.78]
[1742240426670,31.02596853,130.81,130.76,45.45316853]
[1742240427275,31.02596853,130.83,130.77,31.02596853]
[1742240427475,31.02596853,130.83,130.77,169.06305704]
[1742240428255,31.02596853,130.82,130.77,169.06305704]
[1742240428581,31.1681301,130.81,130.73,156.68673737]
[1742240428887,31.02596853,130.79,130.74,37.80596853]
[1742240429586,31.02596853,130.79,130.74,45.45466853]
[1742240429982,31.02596853,130.79,130.74,37.80596853]
[1742240430187,31.02596853,130.78,130.74,6.78]
[1742240430671,7.647,130.77,130.74,6.78]
[1742240431389,7.647,130.77,130.73,138.03708851]
[1742240432684,38.67266853,130.78,130.76,20.0]
[1742240432889,7.6467,130.78,130.74,31.02596853]
[1742240433180,7.6459,130.79,130.76,20.0]
[1742240433484,38.67126853,130.8,130.75,31.02596853]
[1742240433782,0.03,130.77,130.75,31.02596853]
[1742240434182,0.03,130.77,130.76,76.45561739]
[1742240434587,0.03,130.77,130.76,215.3602059]
[1742240434890,0.03,130.77,130.76,203.49055704]
[1742240435093,0.03,130.77,130.76,222.1402059]
[1742240435892,0.03,130.77,130.76,223.6491059]